bitfinex/quotes_BTCUSD_20250615
["timestamp","ask_amount","ask_price","bid_price","bid_amount"]
[1749983308778,0.55403253,105230.0,105220.0,0.13341741]
[1749983309008,0.54452981,105230.0,105220.0,0.14835034]
[1749983309221,0.55349642,105230.0,105220.0,0.13601998]
[1749983309436,0.55549642,105230.0,105220.0,0.1455241]
[1749983309658,0.55549647,105230.0,105220.0,0.12104565]
[1749983309874,0.55549647,105230.0,105220.0,0.32062738]
[1749983310098,0.55549642,105230.0,105220.0,0.12104565]
[1749983310321,0.54657727,105230.0,105220.0,0.12772147]
[1749983310559,0.55549644,105230.0,105220.0,0.30829547]
[1749983310780,0.55549644,105230.0,105220.0,0.32730317]
[1749983310781,0.55549646,105230.0,105220.0,0.32730317]
[1749983311003,0.55549646,105230.0,105220.0,0.32730308]
[1749983311221,0.55649646,105230.0,105220.0,0.32730297]
[1749983311501,0.55649646,105230.0,105220.0,0.12772122]
[1749983311683,0.55649646,105230.0,105220.0,0.32062738]
[1749983311897,0.55649637,105230.0,105220.0,0.32062738]
[1749983312107,0.55649635,105230.0,105220.0,0.32730299]
[1749983312532,0.54757727,105230.0,105220.0,0.32730303]
[1749983312786,0.55649632,105230.0,105220.0,0.33013109]
[1749983313000,0.55649621,105230.0,105220.0,0.33680644]
[1749983313218,0.55649632,105230.0,105220.0,0.33680663]
[1749983313433,0.55649632,105230.0,105220.0,0.12772119]
[1749983313649,0.53807428,105230.0,105220.0,0.11821728]
[1749983313870,0.53807428,105230.0,105220.0,0.11821726]
[1749983313871,0.53313623,105230.0,105220.0,0.11821726]
[1749983314100,0.53958164,105220.0,105210.0,0.0154]
[1749983314321,0.53958164,105220.0,105210.0,0.30636176]
[1749983314544,0.19009599,105210.0,105190.0,0.30011681]
[1749983314766,0.2091053,105210.0,105200.0,0.50028704]
[1749983314982,0.2091053,105210.0,105200.0,0.50979247]
[1749983315674,0.2091053,105210.0,105200.0,0.51929781]
[1749983316103,0.2091053,105210.0,105200.0,0.52129781]
[1749983316333,0.2091053,105210.0,105200.0,0.53649781]
[1749983316556,0.00950452,105210.0,105200.0,0.53649781]
[1749983316810,0.02851338,105210.0,105200.0,0.54600288]
[1749983317044,0.02851338,105210.0,105200.0,0.64482374]
[1749983317506,0.02951338,105210.0,105200.0,0.64882374]
[1749983318294,0.02951338,105210.0,105200.0,0.56610288]
[1749983318549,0.02951338,105210.0,105200.0,0.56646288]
[1749983319607,0.02000877,105210.0,105200.0,0.56646288]
[1749983320143,0.02951338,105210.0,105200.0,0.56646288]
[1749983320921,0.02000877,105210.0,105200.0,0.56646288]
[1749983321166,0.02000823,105210.0,105200.0,0.56646288]
[1749983321409,0.02951266,105210.0,105200.0,0.56646288]
[1749983322366,0.02951266,105210.0,105200.0,0.64967966]
[1749983323970,0.03447962,105210.0,105200.0,0.64967966]
[1749983324926,0.57408094,105210.0,105200.0,0.10224176]
[1749983325158,0.56457669,105210.0,105200.0,0.29736176]
[1749983325378,0.56457669,105210.0,105200.0,0.31637307]
[1749983325591,0.56457669,105210.0,105200.0,0.51599265]
[1749983325858,0.56457669,105210.0,105200.0,0.51399265]
[1749983326083,0.56457669,105210.0,105200.0,0.51403265]
[1749983326305,0.56357669,105210.0,105200.0,0.51003265]
[1749983326954,0.56357669,105210.0,105200.0,0.51953799]
[1749983327189,0.56457669,105210.0,105200.0,0.52153799]
[1749983327407,0.56457669,105210.0,105200.0,0.52153808]
[1749983327848,0.56457669,105210.0,105200.0,0.51203265]
[1749983328069,0.56457669,105210.0,105200.0,0.51871224]
[1749983328499,0.55507226,105210.0,105200.0,0.31404672]
[1749983328711,0.55507226,105210.0,105200.0,0.50244713]
[1749983329144,0.55507226,105210.0,105200.0,0.50912672]
[1749983329595,0.54556774,105210.0,105200.0,0.29332176]
[1749983329839,0.54556774,105210.0,105200.0,0.29328176]
[1749983330496,0.54556774,105210.0,105200.0,0.29996218]
[1749983330707,0.54556774,105210.0,105200.0,0.29996217]
[1749983331005,0.54556774,105210.0,105200.0,0.10492217]
[1749983331224,0.57706774,105210.0,105200.0,0.19704]
[1749983331433,0.60563874,105210.0,105200.0,0.19704]
[1749983331645,0.60563874,105210.0,105200.0,0.00868179]
[1749983331863,0.60563874,105210.0,105200.0,0.00868181]
[1749983332313,0.60563874,105210.0,105200.0,0.002]
[1749983332546,0.53961958,105200.0,105190.0,0.195]
[1749983333245,0.53961958,105200.0,105190.0,0.20168183]
[1749983333599,0.53961958,105200.0,105190.0,0.195]
[1749983333681,0.53961958,105200.0,105190.0,0.20168183]
[1749983333899,0.56819258,105200.0,105190.0,0.20168183]
[1749983334129,0.56819258,105200.0,105190.0,0.195]
[1749983334350,0.56819258,105200.0,105190.0,0.20168184]
[1749983334844,0.56819258,105200.0,105190.0,0.195]
[1749983335058,0.56919258,105200.0,105190.0,0.20168179]
[1749983336188,0.56919258,105200.0,105190.0,0.21668179]
[1749983336422,0.56919258,105200.0,105190.0,0.21665805]
[1749983336636,0.56919258,105200.0,105190.0,0.23274592]
[1749983337078,0.56919258,105200.0,105190.0,0.23940389]
[1749983337294,0.56919258,105200.0,105190.0,0.23274592]
[1749983337530,0.56919258,105200.0,105190.0,0.23940389]
[1749983337742,0.56919258,105200.0,105190.0,0.23274592]
[1749983338177,0.56919258,105200.0,105190.0,0.23940389]
[1749983338606,0.56919258,105200.0,105190.0,0.23274592]
[1749983338852,0.56919258,105200.0,105190.0,0.43904263]
[1749983339821,0.56919258,105200.0,105190.0,0.43904246]
[1749983340062,0.56919258,105200.0,105190.0,0.43904243]
[1749983340493,0.56919258,105200.0,105190.0,0.43238466]
[1749983341157,0.56919258,105200.0,105190.0,0.24225252]
[1749983341392,0.56919258,105200.0,105190.0,0.24891008]
[1749983341617,0.56919258,105200.0,105190.0,0.43904222]
[1749983342072,0.56919258,105200.0,105190.0,0.4390422]
[1749983342294,0.56919258,105200.0,105190.0,0.43904218]
[1749983342967,0.56919258,105200.0,105190.0,0.43238466]
[1749983343192,0.40759418,105200.0,105190.0,0.57910264]
[1749983343413,0.40759418,105200.0,105190.0,0.57910241]
[1749983343637,0.41709979,105200.0,105190.0,0.57910262]
[1749983343849,0.41709979,105200.0,105190.0,0.57910263]
[1749983344114,0.41709979,105200.0,105190.0,0.57910268]
[1749983344329,0.40759418,105200.0,105190.0,0.57244505]
[1749983344542,0.41709979,105200.0,105190.0,0.57244505]
[1749983344754,0.40759418,105200.0,105190.0,0.57244505]
[1749983344968,0.58820326,105200.0,105190.0,0.53813284]
[1749983345181,0.58820326,105200.0,105190.0,0.5448141]
[1749983345611,0.57869801,105200.0,105190.0,0.34517585]
[1749983345828,0.57869801,105200.0,105190.0,0.54198488]
[1749983346042,0.57869801,105200.0,105190.0,0.54198486]
[1749983346732,0.57869801,105200.0,105190.0,0.34234622]
[1749983346946,0.57869801,105200.0,105190.0,0.34234635]
[1749983347162,0.57869801,105200.0,105190.0,0.3356669]
[1749983347827,0.57869801,105200.0,105190.0,0.34234716]
[1749983348055,0.57869801,105200.0,105190.0,0.17210752]
[1749983348268,0.57869801,105200.0,105190.0,0.3046028]
[1749983348480,0.57869801,105200.0,105190.0,0.29792098]
[1749983348693,0.57869801,105200.0,105190.0,0.30742758]
[1749983348914,0.56919258,105200.0,105190.0,0.3141105]
[1749983349122,0.56919258,105200.0,105190.0,0.31382098]
[1749983349335,0.56919258,105200.0,105190.0,0.32050492]
[1749983349546,0.56919258,105200.0,105190.0,0.32050506]
[1749983349760,0.56919258,105200.0,105190.0,0.32050503]
[1749983350197,0.56919258,105200.0,105190.0,0.31382098]
[1749983350422,0.56919258,105200.0,105190.0,0.32050503]
[1749983350631,0.56919258,105200.0,105190.0,0.31382098]
[1749983351475,0.56919258,105200.0,105190.0,0.32332758]
[1749983351934,0.56919258,105200.0,105190.0,0.3300091]
[1749983352161,0.56919258,105200.0,105190.0,0.33000886]
[1749983352379,0.56919258,105200.0,105190.0,0.32050183]
[1749983352598,0.56919258,105200.0,105190.0,0.31382098]
[1749983353275,0.56919258,105200.0,105190.0,0.3205017]
[1749983353502,0.56919258,105200.0,105190.0,0.3205014]
[1749983353728,0.56919258,105200.0,105190.0,0.32050139]
[1749983354225,0.56919258,105200.0,105190.0,0.32050173]
[1749983354407,0.56919258,105200.0,105190.0,0.32050172]
[1749983354698,0.56919258,105200.0,105190.0,0.32050184]
[1749983354924,0.56919258,105200.0,105190.0,0.32050179]
[1749983355357,0.56919258,105200.0,105190.0,0.11882098]
[1749983355606,0.60079258,105200.0,105190.0,0.01336094]
[1749983355816,0.60079258,105200.0,105190.0,0.00667922]
[1749983356037,0.60079258,105200.0,105190.0,0.01336157]
[1749983356285,0.60079258,105200.0,105190.0,0.01336165]
[1749983356724,0.60079258,105200.0,105190.0,0.01336162]
[1749983357172,0.60079258,105200.0,105190.0,0.0133616]
[1749983357399,0.60079258,105200.0,105190.0,0.01336167]
[1749983357612,0.60079258,105200.0,105190.0,0.00667922]
[1749983357827,0.60079258,105200.0,105190.0,0.0133622]
[1749983358043,0.60079258,105200.0,105190.0,0.00667922]
[1749983358263,0.60079258,105200.0,105190.0,0.01336217]
[1749983358477,0.60079258,105200.0,105190.0,0.00667922]
[1749983358687,0.60079258,105200.0,105190.0,0.01336221]
[1749983359123,0.60079258,105200.0,105190.0,0.00667922]
[1749983359353,0.60079258,105200.0,105190.0,0.01336219]
[1749983359583,0.60079258,105200.0,105190.0,0.01336221]
[1749983359793,0.60079258,105200.0,105190.0,0.00667922]
[1749983360225,0.60079258,105200.0,105190.0,0.01336213]
[1749983360434,0.60079258,105200.0,105190.0,0.01336219]
[1749983360689,0.60079258,105200.0,105190.0,0.01336209]
[1749983360908,0.60079258,105200.0,105190.0,0.00667922]
[1749983361126,0.60079258,105200.0,105190.0,0.01336206]
[1749983361348,0.60079258,105200.0,105190.0,0.00667922]
[1749983361564,0.60079258,105200.0,105190.0,0.01336213]
[1749983361780,0.60079258,105200.0,105190.0,0.01336209]
[1749983362290,0.60079258,105200.0,105190.0,0.00667922]
[1749983362473,0.60079258,105200.0,105190.0,0.01336207]
[1749983362713,0.60079258,105200.0,105190.0,0.00667922]
[1749983363138,0.60079258,105200.0,105190.0,0.01336208]
[1749983363380,0.60079258,105200.0,105190.0,0.01336209]
[1749983363591,0.60079258,105200.0,105190.0,0.00667922]
[1749983364016,0.58479258,105200.0,105190.0,0.01336211]
[1749983364442,0.58479258,105200.0,105190.0,0.00667922]
[1749983364665,0.58479258,105200.0,105190.0,0.01336208]
[1749983365296,0.58479258,105200.0,105190.0,0.00667922]
[1749983365509,0.58479258,105200.0,105190.0,0.02004537]
[1749983365719,0.58479258,105200.0,105190.0,0.02004528]
[1749983366373,0.58479258,105200.0,105190.0,0.02004782]
[1749983366792,0.58479258,105200.0,105190.0,0.01336231]
[1749983367259,0.60129258,105200.0,105190.0,0.00818231]
[1749983368585,0.58479258,105200.0,105190.0,0.00818231]
[1749983371050,0.56919258,105200.0,105190.0,0.00818231]
[1749983371293,0.56919258,105200.0,105190.0,0.03928231]
[1749983374671,0.56919258,105200.0,105190.0,0.02378231]
[1749983376466,0.56919258,105200.0,105190.0,0.03968231]
[1749983379094,0.56919258,105200.0,105190.0,0.05750636]
[1749983379311,0.56919258,105200.0,105190.0,0.05750717]
[1749983379527,0.56919258,105200.0,105190.0,0.03968231]
[1749983379743,0.56919258,105200.0,105190.0,0.05750679]
[1749983379975,0.56919258,105200.0,105190.0,0.05750675]
[1749983380456,0.56919258,105200.0,105190.0,0.05750541]
[1749983380668,0.56919258,105200.0,105190.0,0.05750531]
[1749983381109,0.56919258,105200.0,105190.0,0.05750537]
[1749983381323,0.56919258,105200.0,105190.0,0.05750479]
[1749983381748,0.56919258,105200.0,105190.0,0.05750476]
[1749983381962,0.56919258,105200.0,105190.0,0.03968231]
[1749983382181,0.56919258,105200.0,105190.0,0.05750474]
[1749983383290,0.56919258,105200.0,105190.0,0.03968231]
[1749983383516,0.56919258,105200.0,105190.0,0.05750474]
[1749983384191,0.56919258,105200.0,105190.0,0.03968231]
[1749983384408,0.56919258,105200.0,105190.0,0.05750425]
[1749983384625,0.56919258,105200.0,105190.0,0.03968231]
[1749983384831,0.56919258,105200.0,105190.0,0.05750434]
[1749983385275,0.56919258,105200.0,105190.0,0.05750476]
[1749983385482,0.56919258,105200.0,105190.0,0.03968231]
[1749983385695,0.56919258,105200.0,105190.0,0.05750476]
[1749983385909,0.56919258,105200.0,105190.0,0.03968231]
[1749983386119,0.56919258,105200.0,105190.0,0.05750476]
[1749983386350,0.56919258,105200.0,105190.0,0.03968231]
[1749983386562,0.56919258,105200.0,105190.0,0.05750442]
[1749983386775,0.56919258,105200.0,105190.0,0.03968231]
[1749983386993,0.56919258,105200.0,105190.0,0.05750397]
[1749983387201,0.56919258,105200.0,105190.0,0.05750394]
[1749983387417,0.56919258,105200.0,105190.0,0.05750434]
[1749983387899,0.56919258,105200.0,105190.0,0.05750433]
[1749983388145,0.56919258,105200.0,105190.0,0.05750403]
[1749983388338,0.56919258,105200.0,105190.0,0.05750496]
[1749983389035,0.56919258,105200.0,105190.0,0.05750504]
[1749983389236,0.56919258,105200.0,105190.0,0.05750496]
[1749983389707,0.56919258,105200.0,105190.0,0.03968231]
[1749983389916,0.56919258,105200.0,105190.0,0.05750496]
[1749983390362,0.56919258,105200.0,105190.0,0.05750475]
[1749983390556,0.56919258,105200.0,105190.0,0.03968231]
[1749983390791,0.56919258,105200.0,105190.0,0.05750394]
[1749983391191,0.56919258,105200.0,105190.0,0.05748798]
[1749983392058,0.56919258,105200.0,105190.0,0.03968231]
[1749983392913,0.56919258,105200.0,105190.0,0.05748802]
[1749983393121,0.56919258,105200.0,105190.0,0.0574882]
[1749983393541,0.56919258,105200.0,105190.0,0.05748822]
[1749983393750,0.56919258,105200.0,105190.0,0.03968231]
[1749983393988,0.56919258,105200.0,105190.0,0.05748828]
[1749983394202,0.56919258,105200.0,105190.0,0.03968231]
[1749983394424,0.56919258,105200.0,105190.0,0.05748847]
[1749983394644,0.56919258,105200.0,105190.0,0.05748846]
[1749983394860,0.56919258,105200.0,105190.0,0.05748845]
[1749983395084,0.56919258,105200.0,105190.0,0.05748843]
[1749983395347,0.56919258,105200.0,105190.0,0.03968231]
[1749983395743,0.56919258,105200.0,105190.0,0.0574888]
[1749983396323,0.56919258,105200.0,105190.0,0.03968231]
[1749983396727,0.56919258,105200.0,105190.0,0.05748885]
[1749983396939,0.56919258,105200.0,105190.0,0.05748855]
[1749983397140,0.56919258,105200.0,105190.0,0.05748847]
[1749983397339,0.56919258,105200.0,105190.0,0.03968231]
[1749983397549,0.56919258,105200.0,105190.0,0.09730439]
[1749983397966,0.56919258,105200.0,105190.0,0.09730418]
[1749983398297,0.56919258,105200.0,105190.0,0.09730412]
[1749983398701,0.56919258,105200.0,105190.0,0.09730414]
[1749983399010,0.56919258,105200.0,105190.0,0.07948231]
[1749983399535,0.56919258,105200.0,105190.0,0.09730409]
[1749983399755,0.56919258,105200.0,105190.0,0.07948231]
[1749983399963,0.56919258,105200.0,105190.0,0.09730409]
[1749983400406,0.56919258,105200.0,105190.0,0.07948231]
[1749983400611,0.56919258,105200.0,105190.0,0.09730335]
[1749983400820,0.56919258,105200.0,105190.0,0.09730267]
[1749983401021,0.56919258,105200.0,105190.0,0.07948231]
[1749983401247,0.56919258,105200.0,105190.0,0.09730302]
[1749983401457,0.56919258,105200.0,105190.0,0.07948231]
[1749983401923,0.56919258,105200.0,105190.0,0.09730216]
[1749983402143,0.56919258,105200.0,105190.0,0.07948231]
[1749983402361,0.56919258,105200.0,105190.0,0.09730165]
[1749983402574,0.56919258,105200.0,105190.0,0.09730137]
[1749983402786,0.56919258,105200.0,105190.0,0.09730081]
[1749983403003,0.56919258,105200.0,105190.0,0.09729946]
[1749983403218,0.56919258,105200.0,105190.0,0.07948231]
[1749983403653,0.56919258,105200.0,105190.0,0.09729945]
[1749983403912,0.56919258,105200.0,105190.0,0.06358231]
[1749983404339,0.56919258,105200.0,105190.0,0.07998231]
[1749983404768,0.56919258,105200.0,105190.0,0.09779933]
[1749983404978,0.56919258,105200.0,105190.0,0.07998231]
[1749983405413,0.56919258,105200.0,105190.0,0.09779864]
[1749983405637,0.38858368,105200.0,105190.0,0.37289053]
[1749983405853,0.59770824,105200.0,105190.0,0.34556896]
[1749983406068,0.58820326,105200.0,105190.0,0.36338112]
[1749983406273,0.58820326,105200.0,105190.0,0.35507547]
[1749983406482,0.56919258,105200.0,105190.0,0.33074407]
[1749983406690,0.56919258,105200.0,105190.0,0.31434407]
[1749983406900,0.56919258,105200.0,105190.0,0.39247574]
[1749983407109,0.56919258,105200.0,105190.0,0.04159553]
[1749983407322,0.56919258,105200.0,105190.0,0.06358231]
[1749983407732,0.56919258,105200.0,105190.0,0.0813963]
[1749983407936,0.56919258,105200.0,105190.0,0.08139628]
[1749983408141,0.56919258,105200.0,105190.0,0.08139622]
[1749983408573,0.56919258,105200.0,105190.0,0.06358231]
[1749983409350,0.56919258,105200.0,105190.0,0.08139626]
[1749983409546,0.56919258,105200.0,105190.0,0.08139637]
[1749983409985,0.56919258,105200.0,105190.0,0.0813964]
[1749983410411,0.56919258,105200.0,105190.0,0.08139648]
[1749983410820,0.56919258,105200.0,105190.0,0.08139795]
[1749983411046,0.56919258,105200.0,105190.0,0.08139784]
[1749983411246,0.56919258,105200.0,105190.0,0.08139781]
[1749983411453,0.56919258,105200.0,105190.0,0.06358231]
[1749983411670,0.56919258,105200.0,105190.0,0.08139767]
[1749983411996,0.56919258,105200.0,105190.0,0.06358231]
[1749983412204,0.56919258,105200.0,105190.0,0.0813975]
[1749983412415,0.56919258,105200.0,105190.0,0.08139759]
[1749983412626,0.56919258,105200.0,105190.0,0.08139753]
[1749983412847,0.56919258,105200.0,105190.0,0.06358231]
[1749983413051,0.56919258,105200.0,105190.0,0.08139735]
[1749983413466,0.56919258,105200.0,105190.0,0.06358231]
[1749983413666,0.56919258,105200.0,105190.0,0.08139712]
[1749983414045,0.56919258,105200.0,105190.0,0.08139713]
[1749983414171,0.56919258,105200.0,105190.0,0.06358231]
[1749983414618,0.56919258,105200.0,105190.0,0.08139687]
[1749983414841,0.56919258,105200.0,105190.0,0.08139686]
[1749983415047,0.56919258,105200.0,105190.0,0.08139684]
[1749983415459,0.56919258,105200.0,105190.0,0.06358231]
[1749983415727,0.56919258,105200.0,105190.0,0.08139682]
[1749983415928,0.56919258,105200.0,105190.0,0.06358231]
[1749983416165,0.56919258,105200.0,105190.0,0.08139682]
[1749983416592,0.56919258,105200.0,105190.0,0.06358231]
[1749983416809,0.56919258,105200.0,105190.0,0.08139781]
[1749983417227,0.56919258,105200.0,105190.0,0.06358231]
[1749983417456,0.59346289,105200.0,105190.0,0.0813977]
[1749983417662,0.56919258,105200.0,105190.0,0.08139768]
[1749983417883,0.56919258,105200.0,105190.0,0.06358231]
[1749983418087,0.56919258,105200.0,105190.0,0.08139779]
[1749983418291,0.56919258,105200.0,105190.0,0.06358231]
[1749983419461,0.56919258,105200.0,105190.0,0.08139688]
[1749983419697,0.56919258,105200.0,105190.0,0.09709611]
[1749983420141,0.56919258,105200.0,105190.0,0.09709639]
[1749983420498,0.56919258,105200.0,105190.0,0.09709649]
[1749983420930,0.56919258,105200.0,105190.0,0.09709701]
[1749983421332,0.56919258,105200.0,105190.0,0.07928231]
[1749983421533,0.56919258,105200.0,105190.0,0.09709694]
[1749983421779,0.56919258,105200.0,105190.0,0.09709701]
[1749983421998,0.56919258,105200.0,105190.0,0.09709697]
[1749983422224,0.56919258,105200.0,105190.0,0.09709684]
[1749983422420,0.56919258,105200.0,105190.0,0.09709694]
[1749983422633,0.56919258,105200.0,105190.0,0.09709691]
[1749983423624,0.56919258,105200.0,105190.0,0.0970967]
[1749983424058,0.56919258,105200.0,105190.0,0.09709668]
[1749983424271,0.56919258,105200.0,105190.0,0.09709669]
[1749983424882,0.56919258,105200.0,105190.0,0.0970967]
[1749983425098,0.56919258,105200.0,105190.0,0.09709668]
[1749983425290,0.56919258,105200.0,105190.0,0.09709672]
[1749983425533,0.56919258,105200.0,105190.0,0.09709671]
[1749983425766,0.56919258,105200.0,105190.0,0.07928231]
[1749983426176,0.56919258,105200.0,105190.0,0.09709678]
[1749983426379,0.56919258,105200.0,105190.0,0.07928231]
[1749983427059,0.56919258,105200.0,105190.0,0.09709683]
[1749983427269,0.56919258,105200.0,105190.0,0.0970967]
[1749983427475,0.56919258,105200.0,105190.0,0.09709673]
[1749983427679,0.56919258,105200.0,105190.0,0.09709683]
[1749983427888,0.56919258,105200.0,105190.0,0.08139683]
[1749983428125,0.56919258,105200.0,105190.0,0.0813967]
[1749983428344,0.56919258,105200.0,105190.0,0.06358231]
[1749983428775,0.56919258,105200.0,105190.0,0.08139692]
[1749983429152,0.56919258,105200.0,105190.0,0.08139706]
[1749983429318,0.56919258,105200.0,105190.0,0.06358231]
[1749983429532,0.56919258,105200.0,105190.0,0.08139689]
[1749983430529,0.56919258,105200.0,105190.0,0.08139699]
[1749983430975,0.56919258,105200.0,105190.0,0.08139684]
[1749983431169,0.56919258,105200.0,105190.0,0.06358231]
[1749983431374,0.56919258,105200.0,105190.0,0.08139674]
[1749983431782,0.56919258,105200.0,105190.0,0.08139672]
[1749983431986,0.56919258,105200.0,105190.0,0.06358231]
[1749983432203,0.56919258,105200.0,105190.0,0.08139566]
[1749983432414,0.56919258,105200.0,105190.0,0.08139568]
[1749983432641,0.56919258,105200.0,105190.0,0.06358231]
[1749983433128,0.56919258,105200.0,105190.0,0.08139566]
[1749983433341,0.56919258,105200.0,105190.0,0.06358231]
[1749983433575,0.56919258,105200.0,105190.0,0.08139568]
[1749983433785,0.56919258,105200.0,105190.0,0.06358231]
[1749983434226,0.56919258,105200.0,105190.0,0.08139567]
[1749983434449,0.56919258,105200.0,105190.0,0.08139568]
[1749983434689,0.56919258,105200.0,105190.0,0.06358231]
[1749983434873,0.56919258,105200.0,105190.0,0.08139591]
[1749983437809,0.56919258,105200.0,105190.0,0.06358231]
[1749983438026,0.56919258,105200.0,105190.0,0.08139591]
[1749983438700,0.56919258,105200.0,105190.0,0.06358231]
[1749983438908,0.56919258,105200.0,105190.0,0.08139592]
[1749983439565,0.56919258,105200.0,105190.0,0.08139594]
[1749983439813,0.56919258,105200.0,105190.0,0.09759588]
[1749983440033,0.56919258,105200.0,105190.0,0.07978231]
[1749983440456,0.56919258,105200.0,105190.0,0.09759586]
[1749983440694,0.56919258,105200.0,105190.0,0.0975959]
[1749983441050,0.56919258,105200.0,105190.0,0.07978231]
[1749983441266,0.56919258,105200.0,105190.0,0.09759591]
[1749983441470,0.56919258,105200.0,105190.0,0.09759582]
[1749983441723,0.56919258,105200.0,105190.0,0.09759511]
[1749983441870,0.56919258,105200.0,105190.0,0.07978231]
[1749983442074,0.56919258,105200.0,105190.0,0.0975941]
[1749983442276,0.58820353,105200.0,105190.0,0.38516878]
[1749983442528,0.39808947,105200.0,105190.0,0.41248597]
[1749983442739,0.37907798,105200.0,105190.0,0.4124857]
[1749983442955,0.029573,105200.0,105190.0,0.49765844]
[1749983443161,0.001,105200.0,105190.0,0.49765664]
[1749983443363,0.341,105200.0,105190.0,0.49765602]
[1749983443802,0.35050498,105200.0,105190.0,0.47985057]
[1749983444005,0.35050498,105200.0,105190.0,0.41248055]
[1749983444446,0.35050498,105200.0,105190.0,0.39467475]
[1749983444612,0.35050498,105200.0,105190.0,0.41248067]
[1749983444772,0.35050498,105200.0,105190.0,0.41248063]
[1749983444991,0.35050498,105200.0,105190.0,0.41243176]
[1749983445187,0.341,105200.0,105190.0,0.39467475]
[1749983445388,0.35050498,105200.0,105190.0,0.41243168]
[1749983445774,0.341,105200.0,105190.0,0.41243166]
[1749983445992,0.341,105200.0,105190.0,0.39467475]
[1749983446240,0.35050489,105200.0,105190.0,0.39467475]
[1749983446653,0.36000996,105200.0,105190.0,0.39467475]
[1749983446862,0.36000996,105200.0,105190.0,0.41243164]
[1749983447072,0.36000996,105200.0,105190.0,0.41243152]
[1749983447488,0.36000996,105200.0,105190.0,0.39467475]
[1749983447702,0.341,105200.0,105190.0,0.4124316]
[1749983448168,0.341,105200.0,105190.0,0.41243142]
[1749983448605,0.341,105200.0,105190.0,0.41243148]
[1749983448825,0.341,105200.0,105190.0,0.39467475]
[1749983449037,0.341,105200.0,105190.0,0.48269474]
[1749983449246,0.341,105200.0,105190.0,0.5004506]
[1749983449466,0.341,105200.0,105190.0,0.48269474]
[1749983449669,0.341,105200.0,105190.0,0.50045019]
[1749983450105,0.341,105200.0,105190.0,0.48269474]
[1749983450356,0.341,105200.0,105190.0,0.50045018]
[1749983450758,0.341,105200.0,105190.0,0.48269474]
[1749983450967,0.341,105200.0,105190.0,0.41243021]
[1749983451205,0.341,105200.0,105190.0,0.41243002]
[1749983451858,0.34,105200.0,105190.0,0.39467475]
[1749983452075,0.34,105200.0,105190.0,0.4124291]
[1749983452281,0.34,105200.0,105190.0,0.39467475]
[1749983452539,0.34,105200.0,105190.0,0.41242911]
[1749983452744,0.34,105200.0,105190.0,0.41242909]
[1749983452952,0.34,105200.0,105190.0,0.39467475]
[1749983453165,0.34,105200.0,105190.0,0.41542914]
[1749983453381,0.341,105200.0,105190.0,0.41542919]
[1749983453563,0.341,105200.0,105190.0,0.41542936]
[1749983453831,0.341,105200.0,105190.0,0.41542946]
[1749983454046,0.341,105200.0,105190.0,0.39767475]
[1749983454261,0.341,105200.0,105190.0,0.41542959]
[1749983454471,0.341,105200.0,105190.0,0.41542953]
[1749983454688,0.341,105200.0,105190.0,0.39767475]
[1749983454905,0.341,105200.0,105190.0,0.41542961]
[1749983455148,0.341,105200.0,105190.0,0.4154789]
[1749983455363,0.341,105200.0,105190.0,0.41547889]
[1749983456006,0.341,105200.0,105190.0,0.39767475]
[1749983456456,0.341,105200.0,105190.0,0.41547885]
[1749983456692,0.341,105200.0,105190.0,0.41547849]
[1749983456891,0.341,105200.0,105190.0,0.41547837]
[1749983457099,0.341,105200.0,105190.0,0.39767475]
[1749983457308,0.341,105200.0,105190.0,0.41547835]
[1749983457524,0.341,105200.0,105190.0,0.39767475]
[1749983457762,0.001,105200.0,105190.0,0.41547835]
[1749983457975,0.001,105200.0,105190.0,0.39767475]
[1749983458828,0.001,105200.0,105190.0,0.41547735]
[1749983459126,0.001,105200.0,105190.0,0.39767475]
[1749983459547,0.001,105200.0,105190.0,0.41547731]
[1749983459762,0.001,105200.0,105190.0,0.41547729]
[1749983460186,0.001,105200.0,105190.0,0.39767475]
[1749983460610,0.001,105200.0,105190.0,0.41547725]
[1749983460819,0.001,105200.0,105190.0,0.41547723]
[1749983461034,0.001,105200.0,105190.0,0.39767475]
[1749983461455,0.001,105200.0,105190.0,0.41547733]
[1749983461674,0.001,105200.0,105190.0,0.41547737]
[1749983462104,0.001,105200.0,105190.0,0.41547735]
[1749983462325,0.001,105200.0,105190.0,0.39767475]
[1749983462568,0.001,105200.0,105190.0,0.41547743]
[1749983462776,0.001,105200.0,105190.0,0.41547741]
[1749983463627,0.001,105200.0,105190.0,0.41547729]
[1749983463851,0.001,105200.0,105190.0,0.41547725]
[1749983464066,0.001,105200.0,105190.0,0.41547724]
[1749983464500,0.001,105200.0,105190.0,0.41547719]
[1749983464713,0.001,105200.0,105190.0,0.41547677]
[1749983464926,0.001,105200.0,105190.0,0.4154767]
[1749983465389,0.001,105200.0,105190.0,0.41547695]
[1749983465807,0.001,105200.0,105190.0,0.41547802]
[1749983465991,0.001,105200.0,105190.0,0.41547801]
[1749983466203,0.001,105200.0,105190.0,0.39767475]
[1749983466415,0.001,105200.0,105190.0,0.41545219]
[1749983466705,0.001,105200.0,105190.0,0.4154522]
[1749983466921,0.001,105200.0,105190.0,0.39767475]
[1749983467148,0.001,105200.0,105190.0,0.37565188]
[1749983467366,0.001,105200.0,105190.0,0.56993206]
[1749983467583,0.001,105200.0,105190.0,0.56993263]
[1749983467802,0.001,105200.0,105190.0,0.57029274]
[1749983468032,0.001,105200.0,105190.0,0.57029289]
[1749983468248,0.001,105200.0,105190.0,0.57029287]
[1749983468467,0.001,105200.0,105190.0,0.37565272]
[1749983468697,0.001,105200.0,105190.0,0.57029273]
[1749983469168,0.001,105200.0,105190.0,0.55251475]
[1749983469366,0.001,105200.0,105190.0,0.5702926]
[1749983469588,0.001,105200.0,105190.0,0.59878854]
[1749983469804,0.001,105200.0,105190.0,0.59878852]
[1749983470020,0.01050498,105200.0,105190.0,0.59878852]
[1749983470232,0.01050489,105200.0,105190.0,0.59878854]
[1749983470464,0.01050489,105200.0,105190.0,0.59878858]
[1749983470910,0.01050489,105200.0,105190.0,0.59878857]
[1749983471272,0.01050489,105200.0,105190.0,0.59878858]
[1749983471474,0.01050489,105200.0,105190.0,0.59878832]
[1749983471685,0.01050489,105200.0,105190.0,0.59878823]
[1749983471895,0.01050489,105200.0,105190.0,0.58101069]
[1749983472097,0.01050489,105200.0,105190.0,0.59878823]
[1749983472501,0.01050489,105200.0,105190.0,0.59878795]
[1749983472744,0.01050489,105200.0,105190.0,0.58101069]
[1749983473013,0.01050489,105200.0,105190.0,0.59878786]
[1749983473219,0.01050489,105200.0,105190.0,0.59878796]
[1749983473421,0.02000987,105200.0,105190.0,0.59878796]
[1749983473565,0.02000987,105200.0,105190.0,0.59878798]
[1749983474170,0.02000987,105200.0,105190.0,0.58101069]
[1749983474422,0.02000987,105200.0,105190.0,0.59878798]
[1749983474615,0.02000987,105200.0,105190.0,0.58101069]